bitfinex/quotes_BTCUSD_20230906
["timestamp","ask_amount","ask_price","bid_price","bid_amount"]
[1694011812747,0.09397423,25631.0,25630.0,3.63308527]
[1694011812938,0.09397423,25631.0,25630.0,3.63368527]
[1694011813138,0.09397423,25631.0,25630.0,3.63734527]
[1694011813340,0.09397423,25631.0,25630.0,3.64430527]
[1694011813569,0.09397423,25631.0,25630.0,3.65498527]
[1694011813806,0.09397423,25631.0,25630.0,3.65768527]
[1694011813951,0.001,25631.0,25630.0,3.66266527]
[1694011814313,0.001,25631.0,25630.0,4.53566527]
[1694011814531,0.001,25631.0,25630.0,4.54442527]
[1694011814740,0.001,25631.0,25630.0,4.53362527]
[1694011814960,0.001,25631.0,25630.0,4.55954527]
[1694011815175,0.001,25631.0,25630.0,4.52930527]
[1694011815390,0.001,25631.0,25630.0,4.78179054]
[1694011815612,0.001,25631.0,25630.0,5.05491054]
[1694011815821,0.23265237,25635.0,25630.0,5.14503764]
[1694011816057,0.23265237,25635.0,25632.0,0.5719]
[1694011816058,0.09297423,25634.0,25632.0,0.5719]
[1694011816269,0.23265237,25635.0,25633.0,5.02006527]
[1694011816479,0.23265237,25635.0,25633.0,5.12530527]
[1694011816480,0.09297423,25634.0,25633.0,5.12530527]
[1694011816686,0.09297423,25634.0,25633.0,5.18276527]
[1694011816898,0.09297423,25634.0,25633.0,5.27372527]
[1694011817117,0.09297423,25634.0,25633.0,4.49786127]
[1694011817343,0.09297423,25634.0,25633.0,4.40252127]
[1694011817753,0.09297423,25634.0,25633.0,4.47962127]
[1694011817961,0.09497423,25634.0,25633.0,4.82216654]
[1694011818177,0.23465237,25634.0,25633.0,4.82216654]
[1694011818581,0.09497423,25634.0,25633.0,4.90154654]
[1694011818789,0.09497423,25634.0,25633.0,4.91120654]
[1694011819002,0.09497423,25634.0,25633.0,4.91288654]
[1694011819212,0.002,25634.0,25633.0,4.52588127]
[1694011819423,0.002,25634.0,25633.0,4.52948127]
[1694011819627,0.002,25634.0,25633.0,4.52870127]
[1694011819860,0.002,25634.0,25633.0,4.52810127]
[1694011820047,0.09497423,25634.0,25633.0,4.52798127]
[1694011820271,0.09497423,25634.0,25633.0,4.52564127]
[1694011820470,0.09497423,25634.0,25633.0,4.82135081]
[1694011820671,0.09497423,25634.0,25633.0,4.82189081]
[1694011820879,0.09497423,25634.0,25633.0,4.81895081]
[1694011820880,0.14167814,25634.0,25633.0,4.81895081]
[1694011821082,0.14167814,25634.0,25633.0,4.81517081]
[1694011821290,0.14167814,25634.0,25633.0,4.52072127]
[1694011821501,0.0952083,25634.0,25633.0,4.53554127]
[1694011821711,0.1265086,25634.0,25633.0,4.54286127]
[1694011821909,0.002,25634.0,25633.0,4.54244127]
[1694011822115,0.23488644,25634.0,25633.0,4.02632127]
[1694011822325,0.14167814,25634.0,25633.0,4.02632127]
[1694011822542,0.09518204,25634.0,25633.0,4.02632127]
[1694011822750,0.12648234,25634.0,25633.0,4.02632127]
[1694011823159,0.12648234,25634.0,25633.0,4.09370127]
[1694011823388,0.12648234,25634.0,25633.0,4.02632127]
[1694011823977,0.12648234,25634.0,25633.0,4.03820627]
[1694011824829,0.002,25634.0,25633.0,4.11140627]
[1694011825011,0.002,25634.0,25633.0,4.12628627]
[1694011825215,0.002,25634.0,25633.0,4.12472627]
[1694011825443,0.002,25634.0,25633.0,4.12088627]
[1694011825646,0.002,25634.0,25633.0,4.03820627]
[1694011825830,0.002,25634.0,25633.0,4.12262627]
[1694011825979,0.002,25634.0,25633.0,4.12322627]
[1694011826183,0.002,25634.0,25633.0,4.15814956]
[1694011826389,0.002,25634.0,25633.0,4.15808956]
[1694011826593,0.002,25634.0,25633.0,4.15352956]
[1694011826795,0.002,25634.0,25633.0,4.06958956]
[1694011827182,0.002,25634.0,25633.0,4.14800956]
[1694011827384,0.002,25634.0,25633.0,4.06958956]
[1694011828067,0.002,25634.0,25633.0,4.12646956]
[1694011828203,0.002,25634.0,25633.0,4.13774956]
[1694011828415,0.002,25634.0,25633.0,4.15790956]
[1694011828646,0.002,25634.0,25633.0,4.15658956]
[1694011828836,0.002,25634.0,25633.0,4.14950956]
[1694011829020,0.002,25634.0,25633.0,4.14932956]
[1694011829215,0.001,25634.0,25633.0,4.13168956]
[1694011829415,0.001,25634.0,25633.0,4.13234956]
[1694011829743,0.001,25634.0,25633.0,4.54255483]
[1694011829938,0.001,25634.0,25633.0,4.54429483]
[1694011830127,0.001,25634.0,25633.0,4.14110956]
[1694011830303,0.001,25634.0,25633.0,4.11014956]
[1694011830527,0.001,25634.0,25633.0,4.11396956]
[1694011830733,0.09309092,25635.0,25633.0,4.09926956]
[1694011830935,0.09309092,25635.0,25634.0,0.1219]
[1694011831149,0.09309092,25635.0,25634.0,3.95239727]
[1694011831351,0.12439545,25635.0,25634.0,3.95239727]
[1694011831763,0.03130453,25635.0,25634.0,3.95239727]
[1694011831964,0.03130453,25635.0,25634.0,4.02529727]
[1694011832170,0.03130453,25635.0,25634.0,4.02871727]
[1694011832370,0.09309092,25636.0,25634.0,4.02157727]
[1694011832571,0.09309092,25636.0,25635.0,0.83154527]
[1694011832767,0.09309092,25636.0,25635.0,3.17209427]
[1694011832966,0.09309092,25636.0,25635.0,3.95227727]
[1694011833960,0.23274091,25636.0,25635.0,3.95227727]
[1694011834162,0.09309092,25636.0,25635.0,3.95227727]
[1694011835009,0.09309092,25636.0,25635.0,4.2296901]
[1694011835440,0.09309092,25636.0,25635.0,4.03145727]
[1694011835666,0.09309092,25636.0,25635.0,3.96527727]
[1694011836093,0.09309092,25636.0,25635.0,3.20109427]
[1694011836972,0.24497673,25636.0,25635.0,0.329]
[1694011837149,0.24497673,25636.0,25635.0,1.109183]
[1694011837150,0.47773578,25636.0,25635.0,1.109183]
[1694011837353,0.47773578,25636.0,25635.0,0.329]
[1694011837555,0.33808579,25636.0,25635.0,0.329]
[1694011837958,0.33808579,25636.0,25635.0,1.889366]
[1694011838203,0.47792888,25636.0,25635.0,1.889366]
[1694011838434,0.2917289,25636.0,25635.0,1.889366]
[1694011838876,0.47792888,25636.0,25635.0,1.889366]
[1694011839197,0.32604307,25636.0,25635.0,1.889366]
[1694011839403,0.32604307,25636.0,25635.0,2.669549]
[1694011839404,0.13984309,25636.0,25635.0,2.669549]
[1694011839605,0.32604307,25636.0,25635.0,2.669549]
[1694011840055,0.32604307,25636.0,25635.0,1.889366]
[1694011840056,0.13984309,25636.0,25635.0,1.889366]
[1694011840258,0.32604307,25636.0,25635.0,1.889366]
[1694011840552,0.13984309,25636.0,25635.0,1.889366]
[1694011840762,0.32604307,25636.0,25635.0,1.889366]
[1694011841168,0.36973606,25636.0,25635.0,0.029]
[1694011841382,1.19643806,25636.0,25635.0,0.029]
[1694011841614,2.61320598,25636.0,25635.0,0.029]
[1694011841814,2.492356,25636.0,25635.0,0.029]
[1694011842226,2.61943636,25636.0,25635.0,0.029]
[1694011845179,1.83928436,25636.0,25635.0,0.029]
[1694011845399,0.03,25636.0,25635.0,0.029]
[1694011846010,0.30929998,25636.0,25635.0,0.029]
[1694011846427,0.3434569,25636.0,25635.0,0.029]
[1694011849898,0.06415692,25636.0,25635.0,0.029]
[1694011852868,0.08977046,25636.0,25635.0,0.029]
[1694011853093,1.65007446,25636.0,25635.0,0.029]
[1694011853291,0.86992246,25636.0,25635.0,0.029]
[1694011853463,0.08977046,25636.0,25635.0,0.029]
[1694011854133,0.06415692,25636.0,25635.0,0.809183]
[1694011854392,0.06415692,25636.0,25635.0,1.589366]
[1694011854795,0.06415692,25636.0,25635.0,0.809183]
[1694011855035,0.06415692,25636.0,25635.0,0.029]
[1694011855571,0.06415692,25636.0,25635.0,0.809183]
[1694011855974,0.37833878,25636.0,25635.0,0.809183]
[1694011856423,0.37833878,25636.0,25635.0,1.589366]
[1694011857860,0.06415692,25636.0,25635.0,1.589366]
[1694011858094,0.06415692,25636.0,25635.0,0.809183]
[1694011858268,0.37833878,25636.0,25635.0,0.029]
[1694011859099,0.50557123,25636.0,25635.0,0.029]
[1694011859502,2.06587523,25636.0,25635.0,0.029]
[1694011859712,2.18777523,25636.0,25635.0,0.029]
[1694011859915,1.87359337,25636.0,25635.0,0.029]
[1694011860049,1.74636092,25636.0,25635.0,0.029]
[1694011860265,3.90778959,25636.0,25635.0,0.029]
[1694011860495,3.79331019,25636.0,25635.0,0.029]
[1694011860930,4.25153672,25636.0,25635.0,0.013]
[1694011861581,0.03,25631.0,25630.0,0.15465811]
[1694011861781,0.810335,25630.0,25628.0,0.9896]
[1694011862009,0.2800997,25629.0,25628.0,1.769996]
[1694011862156,0.42768907,25630.0,25628.0,2.550392]
[1694011862360,0.03359422,25629.0,25628.0,2.550392]
[1694011862582,0.03359422,25629.0,25628.0,1.560792]
[1694011862801,0.03359422,25629.0,25628.0,0.780396]
[1694011863201,0.81396322,25629.0,25627.0,0.0001]
[1694011863404,0.03359422,25629.0,25627.0,0.3001]
[1694011864258,0.31369392,25629.0,25627.0,0.3001]
[1694011864478,0.16155588,25628.0,25627.0,0.3001]
[1694011864671,0.97195188,25628.0,25627.0,0.0001]
[1694011864899,0.97195188,25628.0,25627.0,0.0251]
[1694011864900,0.47157447,25628.0,25627.0,0.0251]
[1694011865307,0.47157447,25628.0,25627.0,0.0501]
[1694011865308,1.25184611,25628.0,25627.0,0.0501]
[1694011866060,1.25184611,25628.0,25627.0,0.0251]
[1694011866243,0.97195188,25628.0,25627.0,0.0251]
[1694011866441,0.97195188,25628.0,25627.0,0.0001]
[1694011866675,1.75234788,25628.0,25627.0,0.0001]
[1694011866881,1.75234788,25628.0,25627.0,0.0501]
[1694011867493,0.97195188,25628.0,25627.0,0.0251]
[1694011867704,0.97195188,25628.0,25627.0,0.0501]
[1694011868312,0.97195188,25628.0,25627.0,0.0251]
[1694011868516,1.20492493,25628.0,25627.0,0.0501]
[1694011868723,0.97195188,25628.0,25627.0,0.0501]
[1694011868932,1.20491811,25628.0,25627.0,0.0501]
[1694011869343,0.97195188,25628.0,25627.0,0.0501]
[1694011869773,1.75234788,25628.0,25627.0,0.0501]
[1694011870198,2.63109688,25628.0,25627.0,0.0501]
[1694011870438,3.31313988,25628.0,25627.0,0.0501]
[1694011870668,4.17468161,25628.0,25627.0,0.0501]
[1694011870895,4.13525019,25628.0,25627.0,0.0501]
[1694011871098,4.13440111,25628.0,25627.0,0.0501]
[1694011871305,4.13440111,25628.0,25627.0,0.0251]
[1694011871519,3.82012927,25628.0,25627.0,0.0251]
[1694011871746,3.82012927,25628.0,25627.0,0.0071]
[1694011871970,4.13442553,25628.0,25627.0,0.0071]
[1694011872190,0.02989995,25621.0,25620.0,0.6757335]
[1694011872402,0.18455806,25621.0,25620.0,0.6757335]
[1694011872605,0.02989995,25621.0,25620.0,0.6757335]
[1694011872817,0.02989995,25621.0,25618.0,1.031489]
[1694011872818,0.02989995,25619.0,25618.0,1.031489]
[1694011873057,0.02989995,25618.0,25617.0,0.9896]
[1694011873308,0.18455806,25618.0,25617.0,0.9896]
[1694011873508,2.13260533,25618.0,25617.0,0.9896]
[1694011873719,1.97794722,25618.0,25617.0,0.9896]
[1694011873957,0.02989995,25618.0,25617.0,0.9896]
[1694011874174,0.02989995,25618.0,25617.0,2.551062]
[1694011874580,0.02989995,25618.0,25617.0,1.770331]
[1694011874790,0.03089995,25618.0,25617.0,1.794331]
[1694011875205,0.04581869,25618.0,25617.0,1.0136]
[1694011875633,0.04581869,25618.0,25617.0,1.0366]
[1694011875634,1.60722069,25618.0,25617.0,1.0366]
[1694011875882,0.82651969,25618.0,25617.0,1.0366]
[1694011876525,0.85433344,25618.0,25617.0,1.0366]
[1694011876731,0.85433344,25618.0,25617.0,0.93038989]
[1694011876932,0.85433344,25618.0,25617.0,0.024]
[1694011877139,0.07363244,25618.0,25617.0,0.024]
[1694011877342,2.41573544,25618.0,25617.0,0.024]
[1694011877560,2.5227167,25618.0,25617.0,0.024]
[1694011877783,0.02989995,25614.0,25613.0,0.06472444]
[1694011878032,0.02989995,25614.0,25612.0,0.780882]
[1694011878225,0.02989995,25613.0,25611.0,2.551392]
[1694011878432,0.18455806,25613.0,25611.0,1.770492]
[1694011878670,0.02989995,25613.0,25611.0,2.551406]
[1694011878890,0.02989995,25611.0,25610.0,0.0001]
[1694011879096,0.02989995,25611.0,25607.0,0.07512]
[1694011879097,0.02989995,25608.0,25607.0,1.46164382]
[1694011879365,0.02989995,25608.0,25607.0,2.24267982]
[1694011879802,0.02989995,25608.0,25607.0,2.36457982]
[1694011880263,0.02989995,25608.0,25607.0,1.46164382]
[1694011880696,0.06252526,25608.0,25607.0,2.24267982]
[1694011881331,0.06452526,25608.0,25607.0,2.26667982]
[1694011881538,0.06452526,25608.0,25607.0,3.18647503]
[1694011881745,0.002,25608.0,25607.0,3.25184213]
[1694011881967,0.002,25608.0,25607.0,2.92801219]
[1694011882165,0.002,25608.0,25607.0,2.92885219]
[1694011882450,0.002,25608.0,25607.0,2.90287219]
[1694011882618,0.002,25608.0,25607.0,2.83711219]
[1694011883238,0.002,25608.0,25607.0,2.86211219]
[1694011884829,0.002,25608.0,25607.0,3.24875746]
[1694011885045,0.002,25608.0,25607.0,3.37367219]
[1694011885256,0.002,25608.0,25607.0,3.38879219]
[1694011885479,0.02989995,25615.0,25608.0,0.4980871]
[1694011885746,0.02989995,25614.0,25609.0,5.17825838]
[1694011885968,0.02989995,25614.0,25613.0,0.1219]
[1694011886179,0.02989995,25614.0,25613.0,3.245312]
[1694011886386,0.02989995,25614.0,25613.0,3.65495727]
[1694011887465,0.02989995,25614.0,25613.0,3.67995727]
[1694011888112,0.03089995,25614.0,25613.0,3.70495727]
[1694011889187,0.001,25614.0,25613.0,3.78673727]
[1694011889394,0.001,25614.0,25613.0,3.9277444]
[1694011889611,0.001,25614.0,25613.0,3.9689715]
[1694011889827,0.001,25614.0,25613.0,3.9706515]
[1694011890029,0.001,25614.0,25613.0,3.9734115]
[1694011890213,0.001,25614.0,25613.0,3.9834915]
[1694011890424,0.001,25614.0,25613.0,3.9684315]
[1694011890630,0.001,25614.0,25613.0,3.9642315]
[1694011890855,0.001,25614.0,25613.0,3.9567915]
[1694011891055,0.001,25614.0,25613.0,3.9646515]
[1694011891273,0.001,25614.0,25613.0,3.9619515]
[1694011891484,0.001,25614.0,25613.0,3.9562515]
[1694011891691,0.001,25614.0,25613.0,3.9573315]
[1694011891890,0.001,25614.0,25613.0,3.9575715]
[1694011892119,0.001,25614.0,25613.0,3.9577515]
[1694011892329,0.001,25614.0,25613.0,3.9581115]
[1694011892531,0.001,25614.0,25613.0,4.3635315]
[1694011892738,0.001,25614.0,25613.0,4.3865715]
[1694011892948,0.001,25614.0,25613.0,4.3858515]
[1694011893093,0.001,25614.0,25613.0,4.3995315]
[1694011893296,0.001,25614.0,25613.0,4.3771715]
[1694011893506,0.02989995,25617.0,25613.0,4.3742315]
[1694011893712,0.02989995,25617.0,25616.0,3.244948]
[1694011893934,0.02989995,25617.0,25616.0,3.65459327]
[1694011894146,0.02989995,25620.0,25616.0,3.65459327]
[1694011894383,0.02989995,25619.0,25618.0,0.1219]
[1694011894586,0.02989995,25619.0,25618.0,3.244704]
[1694011894999,0.15548456,25619.0,25618.0,3.244704]
[1694011895212,0.15548456,25619.0,25618.0,2.464003]
[1694011895800,0.02989995,25619.0,25618.0,2.464003]
[1694011896633,0.02989995,25619.0,25618.0,1.683302]
[1694011896977,0.05200736,25619.0,25618.0,0.780701]
[1694011897202,0.05200736,25619.0,25618.0,1.561402]
[1694011897579,0.05200736,25619.0,25618.0,1.566402]
[1694011898217,0.05200736,25619.0,25618.0,2.347103]
[1694011898452,0.05200736,25619.0,25618.0,1.566402]
[1694011899638,0.05200736,25619.0,25618.0,2.347103]
[1694011899833,0.02989995,25619.0,25618.0,3.249704]
[1694011902299,0.02989995,25620.0,25618.0,3.249704]
[1694011902523,0.0297999,25621.0,25619.0,0.1219]
[1694011902731,0.0297999,25621.0,25620.0,3.24446]
[1694011903507,0.06263651,25621.0,25620.0,3.24446]
[1694011904258,0.06263651,25621.0,25620.0,3.29346]
[1694011912766,0.06263651,25621.0,25620.0,2.51282]
[1694011912961,0.07628927,25621.0,25620.0,2.51282]
[1694011913190,0.07628927,25621.0,25620.0,0.049]
[1694011913398,0.85689827,25621.0,25620.0,0.049]
[1694011913721,1.63750727,25621.0,25620.0,0.049]
[1694011913928,2.41811627,25621.0,25620.0,0.049]
[1694011914975,1.63750727,25621.0,25620.0,0.049]
[1694011915198,0.85689827,25621.0,25620.0,0.049]
[1694011916314,0.07628927,25621.0,25620.0,0.049]
[1694011916933,0.85689827,25621.0,25620.0,0.049]
[1694011918613,0.07628927,25621.0,25620.0,0.049]
[1694011918820,0.07628927,25621.0,25620.0,0.82964]
[1694011919037,0.07628927,25621.0,25620.0,2.39092]
[1694011919038,0.06263651,25621.0,25620.0,2.39092]
[1694011920689,0.06263651,25621.0,25620.0,3.17156]
[1694011922948,1.1122129,25621.0,25620.0,0.049]
[1694011923163,1.73816379,25621.0,25620.0,0.049]
[1694011923374,1.87777267,25621.0,25620.0,0.049]
[1694011923842,1.78470009,25621.0,25620.0,0.049]
[1694011924042,3.09915395,25621.0,25620.0,0.024]
[1694011924251,4.11244441,25621.0,25620.0,0.024]
[1694011924459,3.92629924,25621.0,25620.0,0.038]
[1694011924670,3.28986722,25621.0,25620.0,0.024]
[1694011924921,0.74748712,25621.0,25620.0,0.024]
[1694011925152,2.30870512,25621.0,25620.0,0.024]
[1694011925362,2.90322195,25621.0,25618.0,0.780685]
[1694011925567,0.2327029,25619.0,25618.0,0.780685]
[1694011925771,0.2625028,25619.0,25618.0,0.780685]
[1694011925929,0.28988014,25619.0,25618.0,0.780685]
[1694011926136,0.1502584,25619.0,25618.0,2.342087]
[1694011926548,0.1502584,25619.0,25618.0,3.122788]
[1694011926870,0.1502584,25619.0,25618.0,3.123788]
[1694011927075,0.05817724,25619.0,25618.0,3.123788]
[1694011927397,0.1512584,25619.0,25618.0,3.122788]
[1694011927590,0.1532584,25619.0,25618.0,3.122788]
[1694011927899,0.1512584,25619.0,25618.0,3.122788]
[1694011928300,0.29088014,25619.0,25618.0,3.122788]
[1694011929305,0.38396131,25619.0,25618.0,3.129788]
[1694011929683,0.38396131,25619.0,25618.0,2.349087]
[1694011929887,0.42429057,25619.0,25618.0,2.363087]
[1694011930113,0.19160911,25619.0,25618.0,0.801685]
[1694011934161,0.19160911,25619.0,25618.0,0.021]
[1694011934566,0.97227911,25619.0,25618.0,0.021]
[1694011934781,1.87484911,25619.0,25618.0,0.021]
[1694011935009,2.92973687,25619.0,25618.0,0.021]
[1694011935428,3.71040687,25619.0,25618.0,0.021]
[1694011935837,3.71040687,25619.0,25618.0,0.014]
[1694011935838,3.70940687,25619.0,25618.0,0.014]
[1694011936523,2.93632603,25619.0,25618.0,0.014]
[1694011937264,2.93732603,25619.0,25618.0,0.001]
[1694011937616,2.94032603,25619.0,25618.0,0.002]
[1694011937817,3.3269713,25619.0,25618.0,0.002]
[1694011938019,4.1076413,25619.0,25618.0,0.002]
[1694011938216,3.3269713,25619.0,25618.0,0.002]
[1694011938431,3.04775354,25619.0,25618.0,0.002]
[1694011939277,2.26608354,25619.0,25618.0,0.001]
[1694011939751,2.26708354,25619.0,25618.0,0.002]
[1694011940804,3.04775354,25619.0,25618.0,0.002]
[1694011941015,2.26708354,25619.0,25618.0,0.002]
[1694011941220,2.26708354,25619.0,25618.0,0.0021]
[1694011942470,2.5463013,25619.0,25618.0,0.0021]
[1694011945365,0.0637664,25619.0,25618.0,2.344203]
[1694011945581,0.0637664,25619.0,25618.0,3.124904]
[1694011946213,0.29648706,25619.0,25618.0,3.124904]
[1694011946851,0.29548706,25619.0,25618.0,3.123904]
[1694011947066,0.29548706,25619.0,25618.0,3.04683578]
[1694011947267,0.29648706,25619.0,25618.0,3.04783578]
[1694011947890,0.29548706,25619.0,25618.0,3.04683578]
[1694011948095,0.29648706,25619.0,25618.0,3.04683578]
[1694011949040,0.29348706,25619.0,25618.0,3.04683578]
[1694011949265,0.24697233,25619.0,25618.0,3.16873578]
[1694011949473,0.38963578,25619.0,25618.0,3.16873578]
[1694011950328,0.29648706,25619.0,25618.0,3.16873578]
[1694011950539,0.0627664,25619.0,25618.0,3.04683578]
[1694011950749,0.0637664,25619.0,25618.0,3.04683578]
[1694011951151,0.0637664,25619.0,25618.0,2.26613478]
[1694011951296,0.0607664,25619.0,25618.0,2.26613478]
[1694011951503,0.0597664,25619.0,25618.0,2.26613478]
[1694011951704,0.0637664,25619.0,25618.0,2.26613478]
[1694011952128,0.19318929,25619.0,25617.0,1.561435]
[1694011952321,0.25759515,25618.0,25617.0,1.561435]
[1694011952706,0.0900557,25618.0,25617.0,2.292152]
[1694011953757,0.05975485,25618.0,25616.0,1.849576]
[1694011953967,0.05975485,25618.0,25617.0,0.780731]
[1694011954169,0.20058049,25618.0,25616.0,1.561476]
[1694011954376,0.23286422,25617.0,25616.0,2.342223]
[1694011954581,0.23286422,25617.0,25616.0,0.780737]
[1694011954793,0.98129449,25618.0,25616.0,0.780737]
[1694011954794,1.76201249,25618.0,25616.0,0.780737]
[1694011955007,0.0247999,25614.0,25613.0,1.0258257]
[1694011955217,0.17945801,25614.0,25613.0,1.561678]
[1694011955489,0.17945801,25614.0,25612.0,1.561729]
[1694011955490,0.02384914,25614.0,25612.0,1.561729]
[1694011955709,0.02384914,25614.0,25611.0,1.561814]
[1694011955710,0.02384914,25612.0,25611.0,1.561814]
[1694011955915,0.44282939,25612.0,25611.0,1.561798]
[1694011956339,0.25661676,25612.0,25611.0,0.780895]
[1694011956548,0.25661676,25612.0,25611.0,2.342723]
[1694011956761,0.25661676,25612.0,25611.0,2.342742]
[1694011956762,0.44284692,25612.0,25611.0,2.342742]
[1694011956952,0.2100793,25612.0,25611.0,2.342742]
[1694011957157,0.2100793,25612.0,25611.0,2.14732066]
[1694011957365,0.2100793,25612.0,25611.0,2.342742]
[1694011957755,0.2110793,25612.0,25611.0,2.342742]
[1694011958200,0.25168724,25612.0,25611.0,2.342742]
[1694011958605,0.39131464,25612.0,25611.0,2.342742]
[1694011959684,0.39131464,25612.0,25611.0,2.347742]
[1694011959685,0.20508448,25612.0,25611.0,2.347742]
[1694011960367,0.20508448,25612.0,25611.0,1.566828]
[1694011960582,0.29813077,25612.0,25611.0,1.566828]
[1694011961211,0.29813077,25612.0,25611.0,2.347742]
[1694011961664,0.15850337,25612.0,25611.0,0.005]
[1694011962088,0.12282932,25611.0,25610.0,0.59050366]
[1694011963079,0.14667846,25611.0,25610.0,0.59050366]
[1694011963287,0.14667846,25611.0,25610.0,0.59750366]
[1694011963492,0.02384914,25611.0,25610.0,0.007]
[1694011963693,1.10422576,25611.0,25610.0,0.007]
[1694011963917,2.71265652,25611.0,25610.0,0.007]
[1694011964118,2.71265652,25611.0,25606.0,0.1602]
[1694011964119,0.02384914,25608.0,25606.0,0.1602]
[1694011964329,0.02384914,25608.0,25605.0,2.571549]
[1694011964330,0.01,25607.0,25605.0,2.571549]
[1694011964533,0.01,25607.0,25605.0,2.363031]
[1694011964534,0.16220811,25607.0,25605.0,2.363031]
[1694011964675,0.00755,25607.0,25605.0,1.581949]
[1694011965087,0.00755,25607.0,25605.0,0.800868]
[1694011965718,0.00755,25607.0,25605.0,1.581965]
[1694011966095,0.00755,25607.0,25605.0,2.363062]
[1694011966295,0.00855,25607.0,25605.0,2.388062]
[1694011966502,0.02838685,25606.0,25605.0,2.388062]
[1694011967522,0.02838685,25606.0,25605.0,3.68738441]
[1694011967782,0.02838685,25606.0,25605.0,3.316059]
[1694011967947,0.00855,25607.0,25605.0,3.291059]
[1694011968186,0.00855,25607.0,25606.0,0.1219]
[1694011968389,0.00855,25607.0,25606.0,2.465098]
[1694011968624,0.00755,25607.0,25606.0,3.246164]
[1694011969426,0.00855,25607.0,25606.0,3.271164]
[1694011971405,0.00855,25607.0,25606.0,3.296164]
[1694011973411,0.00855,25607.0,25606.0,3.68280927]
[1694011973619,0.00855,25607.0,25606.0,3.78092927]
[1694011973832,0.001,25607.0,25606.0,3.79934927]
[1694011974060,0.001,25607.0,25606.0,3.84435637]
[1694011974245,0.001,25607.0,25606.0,3.84297637]
[1694011974493,0.001,25607.0,25606.0,3.84189637]
[1694011974671,0.001,25607.0,25606.0,3.83613637]
[1694011974884,0.001,25607.0,25606.0,3.83415637]
[1694011975112,0.001,25607.0,25606.0,3.83265637]
[1694011975348,0.001,25607.0,25606.0,3.83283637]
[1694011975534,0.001,25607.0,25606.0,3.83271637]
[1694011975741,0.001,25607.0,25606.0,3.83313637]
[1694011975956,0.001,25607.0,25606.0,3.83547637]
[1694011976169,0.001,25607.0,25606.0,4.12881637]
[1694011976370,0.001,25607.0,25606.0,4.12989637]
[1694011976629,0.001,25607.0,25606.0,2.815098]
[1694011976821,0.001,25607.0,25606.0,2.034032]
[1694011977031,0.00855,25607.0,25606.0,0.05]
[1694011977233,0.03693304,25607.0,25606.0,0.05]
[1694011978257,0.03693304,25607.0,25606.0,0.831066]
[1694011978476,0.03693304,25607.0,25606.0,1.612132]
[1694011979081,0.15515746,25607.0,25606.0,1.612132]
[1694011979494,0.03693304,25607.0,25606.0,0.831066]
[1694011979903,0.03693304,25607.0,25606.0,2.393198]
[1694011980117,0.03693304,25607.0,25606.0,2.515098]
[1694011981347,0.03693304,25607.0,25606.0,1.734032]
[1694011981768,0.03693304,25607.0,25606.0,2.515098]
[1694011981973,0.03693304,25607.0,25606.0,1.734032]
[1694011982822,0.03693304,25607.0,25606.0,2.515098]
[1694011983230,0.03693304,25607.0,25606.0,3.296164]
[1694011983682,0.03693304,25607.0,25606.0,3.63093094]
[1694011983884,0.00855,25607.0,25606.0,3.68280927]
[1694011984089,0.00855,25607.0,25606.0,3.70580927]
[1694011984302,0.00855,25607.0,25606.0,3.78872927]
[1694011984553,0.00855,25607.0,25606.0,2.92474327]
[1694011984757,0.00855,25607.0,25606.0,3.70580927]
[1694011985609,0.00855,25607.0,25606.0,3.77222927]
[1694011985815,0.00855,25607.0,25606.0,3.77636927]
[1694011986010,0.00855,25607.0,25606.0,3.78548927]
[1694011986207,0.00855,25607.0,25606.0,3.78410927]
[1694011986441,0.00855,25607.0,25606.0,3.78278927]
[1694011986647,0.00855,25607.0,25606.0,3.78518927]
[1694011986901,0.00855,25607.0,25606.0,3.78542927]
[1694011987099,0.00855,25607.0,25606.0,3.78500927]
[1694011987298,0.001,25607.0,25606.0,3.78410927]
[1694011987511,0.001,25607.0,25606.0,3.77984927]
[1694011987716,0.001,25607.0,25606.0,3.77996927]
[1694011987929,0.001,25607.0,25606.0,3.78050927]
[1694011988071,0.001,25607.0,25606.0,4.18113454]
[1694011988292,0.001,25607.0,25606.0,4.49037454]
[1694011988495,0.001,25607.0,25606.0,4.49745454]
[1694011988797,0.001,25607.0,25606.0,4.49367454]
[1694011988994,0.001,25607.0,25606.0,4.49985454]
[1694011989195,0.001,25607.0,25606.0,4.52228927]
[1694011989396,0.001,25607.0,25606.0,4.87770723]
[1694011989610,0.001,25607.0,25606.0,5.08370723]
[1694011989797,0.001,25607.0,25606.0,4.94150723]
[1694011990021,0.001,25607.0,25606.0,5.07578723]
[1694011990221,0.02139914,25612.0,25606.0,5.25517454]
[1694011990425,0.04139914,25612.0,25611.0,0.1219]
[1694011990579,0.04139914,25613.0,25611.0,3.245556]
[1694011990779,0.04139914,25613.0,25612.0,0.1219]
[1694011991016,0.04139914,25613.0,25612.0,3.245432]
[1694011991201,0.19752533,25614.0,25612.0,3.245432]
[1694011991412,0.19752533,25614.0,25613.0,0.1219]
[1694011991688,0.19752533,25614.0,25613.0,3.245312]
[1694011991892,0.04139914,25614.0,25613.0,3.245312]
[1694011992719,0.18535424,25614.0,25613.0,0.1219]
[1694011993044,0.18535424,25614.0,25612.0,1.683641]
[1694011993253,0.18535424,25614.0,25612.0,0.90277]
[1694011993494,0.04139914,25613.0,25612.0,0.90277]
[1694011993703,0.04139914,25613.0,25612.0,0.902783]
[1694011994105,0.04139914,25613.0,25612.0,0.905783]
[1694011994313,0.06236859,25613.0,25612.0,0.905783]
[1694011994729,0.06236859,25613.0,25612.0,0.1249]
[1694011994933,0.06236859,25613.0,25612.0,0.003]
[1694011995983,0.06236859,25613.0,25612.0,0.783883]
[1694011996415,0.04139914,25613.0,25612.0,3.63507727]
[1694011996872,0.07304035,25613.0,25612.0,3.43966356]
[1694011997994,0.07304035,25613.0,25612.0,3.63207727]
[1694011998199,0.19086927,25613.0,25612.0,2.85119427]
[1694011998600,0.19086927,25613.0,25612.0,2.464549]
[1694011998815,0.19086927,25613.0,25612.0,1.683666]